[Event "Live Chess"]
[Site "Chess.com"]
[Date "2023.05.20"]
[Round "-"]
[White "Geomorph"]
[Black "SavagePawn7"]
[Result "1-0"]
[WhiteElo "1245"]
[BlackElo "795"]
[TimeControl "300"]
[EndTime "13:30:01 PDT"]
[Termination "Geomorph won by resignation"]

1. e4 {[%clk 0:04:58.9]} 1... d5 {[%clk 0:04:57.8]} 2. exd5 {[%clk 0:04:56.8]}
2... Nf6 {[%clk 0:04:56.2]} 3. Nc3 {[%clk 0:04:56.5]} 3... Nxd5 {[%clk
0:04:54.6]} 4. Bb5+ {[%clk 0:04:22.6]} 4... Bd7 {[%clk 0:04:51.9]} 5. Nxd5
{[%clk 0:04:09.9]} 5... Bxb5 {[%clk 0:04:49.5]} 6. Qf3 {[%clk 0:04:06.6]} 6...
Bc6 {[%clk 0:04:41.5]} 7. c4 {[%clk 0:04:03.9]} 7... b5 {[%clk 0:04:34.7]} 8. b3
{[%clk 0:03:56]} 8... e6 {[%clk 0:04:22.3]} 9. Qe3 {[%clk 0:03:51.1]} 9... Be7
{[%clk 0:04:18.6]} 10. Nxe7 {[%clk 0:03:43.4]} 10... Qxe7 {[%clk 0:04:16.6]} 11.
Ne2 {[%clk 0:03:39.5]} 11... Qf6 {[%clk 0:03:58]} 12. Ba3 {[%clk 0:03:35]} 12...
Qxa1+ {[%clk 0:03:53.9]} 13. Nc1 {[%clk 0:03:32.1]} 13... Qf6 {[%clk 0:03:38.5]}
14. O-O {[%clk 0:03:30.2]} 14... Qg6 {[%clk 0:03:12.5]} 15. g3 {[%clk
0:03:18.3]} 15... Qh6 {[%clk 0:03:06.2]} 16. Qc5 {[%clk 0:03:14.8]} 16... Kd8
{[%clk 0:02:30]} 17. cxb5 {[%clk 0:03:02.1]} 17... Bf3 {[%clk 0:02:06.2]} 18.
Qe7+ {[%clk 0:02:40.3]} 18... Kc8 {[%clk 0:02:04.8]} 19. Qxf7 {[%clk 0:02:31.6]}
19... Qh3 {[%clk 0:01:56]} 20. Qxf3 {[%clk 0:02:26.5]} 20... a6 {[%clk
0:01:46.7]} 21. Qxa8 {[%clk 0:02:23.7]} 21... Rd8 {[%clk 0:01:34.6]} 22. bxa6
{[%clk 0:02:20.5]} 22... Rxd2 {[%clk 0:01:29.9]} 23. Qb7+ {[%clk 0:02:07.2]}
23... Kd7 {[%clk 0:01:25.7]} 24. Qxb8 {[%clk 0:02:02.1]} 1-0

[Event "Live Chess"]
[Site "Chess.com"]
[Date "2023.05.20"]
[Round "-"]
[White "manthanit"]
[Black "LozzaLoaf"]
[Result "1-0"]
[WhiteElo "1008"]
[BlackElo "248"]
[TimeControl "300"]
[EndTime "13:30:01 PDT"]
[Termination "manthanit won by checkmate"]

1. e4 {[%clk 0:04:55.6]} 1... e5 {[%clk 0:04:57.1]} 2. Nf3 {[%clk 0:04:53.2]}
2... f6 {[%clk 0:04:56.1]} 3. Bc4 {[%clk 0:04:52.5]} 3... c6 {[%clk 0:04:53.1]}
4. d4 {[%clk 0:04:51.3]} 4... d5 {[%clk 0:04:52.1]} 5. exd5 {[%clk 0:04:50.1]}
5... cxd5 {[%clk 0:04:48.7]} 6. Bb3 {[%clk 0:04:46.1]} 6... e4 {[%clk
0:04:45.5]} 7. Nh4 {[%clk 0:04:36.2]} 7... g5 {[%clk 0:04:43.6]} 8. Qh5+ {[%clk
0:04:30.8]} 8... Ke7 {[%clk 0:04:37]} 9. Ng6+ {[%clk 0:04:29.6]} 9... Kf7 {[%clk
0:04:32.8]} 10. Nxh8+ {[%clk 0:04:28.4]} 10... Kg7 {[%clk 0:04:30.8]} 11. Nf7
{[%clk 0:04:15.9]} 11... Nh6 {[%clk 0:04:26.1]} 12. Nxh6 {[%clk 0:04:14.1]}
12... Qa5+ {[%clk 0:04:19.9]} 13. c3 {[%clk 0:04:12.6]} 13... Qb5 {[%clk
0:04:15.1]} 14. Nd2 {[%clk 0:04:06.6]} 14... Qd3 {[%clk 0:04:13.7]} 15. Bxd5
{[%clk 0:03:47.8]} 15... e3 {[%clk 0:04:11.9]} 16. fxe3 {[%clk 0:03:27.4]} 16...
Qxe3+ {[%clk 0:04:09.5]} 17. Qe2 {[%clk 0:03:25.1]} 17... Qxe2+ {[%clk
0:04:01.9]} 18. Kxe2 {[%clk 0:03:24.1]} 18... Kxh6 {[%clk 0:04:00.7]} 19. Ne4
{[%clk 0:03:15.5]} 19... Bg4+ {[%clk 0:03:58.8]} 20. Kd3 {[%clk 0:03:10.5]}
20... Nd7 {[%clk 0:03:50.8]} 21. h3 {[%clk 0:03:07.7]} 21... f5 {[%clk
0:03:49.8]} 22. Nf2 {[%clk 0:03:01.1]} 22... f4 {[%clk 0:03:40]} 23. hxg4+
{[%clk 0:02:59.4]} 23... Kg6 {[%clk 0:03:32.7]} 24. Be4+ {[%clk 0:02:56.3]}
24... Kf6 {[%clk 0:03:30.2]} 25. Rxh7 {[%clk 0:02:55.5]} 25... Rd8 {[%clk
0:03:21.2]} 26. Bd2 {[%clk 0:02:47.3]} 26... Nc5+ {[%clk 0:03:20.3]} 27. Kc2
{[%clk 0:02:43.6]} 27... Nxe4 {[%clk 0:03:18.8]} 28. Nxe4+ {[%clk 0:02:42.4]}
28... Kg6 {[%clk 0:03:12.8]} 29. Rh5 {[%clk 0:02:40.3]} 29... a6 {[%clk
0:03:02.8]} 30. Rxg5+ {[%clk 0:02:35.2]} 30... Kh6 {[%clk 0:02:59.9]} 31. Bxf4
{[%clk 0:02:33.8]} 31... b5 {[%clk 0:02:52.2]} 32. Rd5+ {[%clk 0:02:32.7]} 32...
Kg6 {[%clk 0:02:47.5]} 33. Rxd8 {[%clk 0:02:31.7]} 33... Be7 {[%clk 0:02:46.7]}
34. Rd7 {[%clk 0:02:25.4]} 34... Bd6 {[%clk 0:02:45.3]} 35. Rxd6+ {[%clk
0:02:23.9]} 35... Kf7 {[%clk 0:02:43.6]} 36. Rxa6 {[%clk 0:02:22.9]} 36... Ke7
{[%clk 0:02:42.4]} 37. Rh1 {[%clk 0:02:22.2]} 37... Kd7 {[%clk 0:02:40.9]} 38.
Rh5 {[%clk 0:02:21.4]} 38... b4 {[%clk 0:02:37.4]} 39. cxb4 {[%clk 0:02:19.5]}
39... Ke7 {[%clk 0:02:35]} 40. b5 {[%clk 0:02:18.9]} 40... Kf7 {[%clk
0:02:33.8]} 41. b6 {[%clk 0:02:17.1]} 41... Kg6 {[%clk 0:02:33]} 42. b7+ {[%clk
0:02:14.5]} 42... Kf7 {[%clk 0:02:31.1]} 43. b8=Q {[%clk 0:02:13.3]} 43... Ke7
{[%clk 0:02:29.5]} 44. Qb7+ {[%clk 0:02:12.5]} 44... Kd8 {[%clk 0:02:27.6]} 45.
Rh8# {[%clk 0:02:11.9]} 1-0

[Event "Live Chess"]
[Site "Chess.com"]
[Date "2023.05.20"]
[Round "-"]
[White "Richardallis"]
[Black "Bob2pen"]
[Result "1-0"]
[WhiteElo "1875"]
[BlackElo "1821"]
[TimeControl "300"]
[EndTime "13:30:05 PDT"]
[Termination "Richardallis won by resignation"]

1. d4 {[%clk 0:04:47.5]} 1... Nf6 {[%clk 0:04:58]} 2. Nf3 {[%clk 0:04:46.9]}
2... g6 {[%clk 0:04:56.5]} 3. Bg5 {[%clk 0:04:46.3]} 3... Bg7 {[%clk 0:04:55.4]}
4. Nbd2 {[%clk 0:04:45.8]} 4... O-O {[%clk 0:04:54.2]} 5. e4 {[%clk 0:04:45]}
5... d6 {[%clk 0:04:53.3]} 6. c3 {[%clk 0:04:44.1]} 6... c5 {[%clk 0:04:51.9]}
7. dxc5 {[%clk 0:04:42.9]} 7... dxc5 {[%clk 0:04:50.8]} 8. Bc4 {[%clk
0:04:42.5]} 8... Nc6 {[%clk 0:04:48.8]} 9. Qe2 {[%clk 0:04:41.2]} 9... a6 {[%clk
0:04:46.2]} 10. a4 {[%clk 0:04:40]} 10... Rb8 {[%clk 0:04:44.6]} 11. O-O {[%clk
0:04:36.8]} 11... Qc7 {[%clk 0:04:40.8]} 12. h3 {[%clk 0:04:35.2]} 12... h6
{[%clk 0:04:09]} 13. Bh4 {[%clk 0:04:33.8]} 13... Re8 {[%clk 0:04:01.4]} 14. e5
{[%clk 0:04:32.3]} 14... Nh7 {[%clk 0:03:52.8]} 15. e6 {[%clk 0:04:30.4]} 15...
f5 {[%clk 0:03:36.7]} 16. Bg3 {[%clk 0:04:29.1]} 16... f4 {[%clk 0:03:29.5]} 17.
Bh2 {[%clk 0:04:28]} 17... Nf8 {[%clk 0:03:22.7]} 18. Qe4 {[%clk 0:04:23.6]}
18... Ne5 {[%clk 0:03:19.9]} 19. Bxf4 {[%clk 0:04:19.5]} 19... b5 {[%clk
0:03:05.3]} 20. axb5 {[%clk 0:04:11.8]} 20... axb5 {[%clk 0:03:03.8]} 21. Nxe5
{[%clk 0:04:10.5]} 21... bxc4 {[%clk 0:02:54.3]} 22. Nd7 {[%clk 0:04:09.2]}
22... Bb7 {[%clk 0:02:51.2]} 23. Bxc7 {[%clk 0:04:05.7]} 23... Bxe4 {[%clk
0:02:49.6]} 24. Bxb8 {[%clk 0:04:01.3]} 24... Nxd7 {[%clk 0:02:46.5]} 25. exd7
{[%clk 0:03:59.9]} 25... Rxb8 {[%clk 0:02:45.3]} 26. Nxe4 {[%clk 0:03:59.1]} 1-0

[Event "Live Chess"]
[Site "Chess.com"]
[Date "2023.05.20"]
[Round "-"]
[White "diana21strabt"]
[Black "tuppyglossop"]
[Result "0-1"]
[WhiteElo "1672"]
[BlackElo "1619"]
[TimeControl "300"]
[EndTime "13:30:56 PDT"]
[Termination "tuppyglossop won by checkmate"]

1. e4 {[%clk 0:04:58.6]} 1... c5 {[%clk 0:04:57.9]} 2. Nf3 {[%clk 0:04:57.5]}
2... d6 {[%clk 0:04:57.2]} 3. d4 {[%clk 0:04:56.2]} 3... cxd4 {[%clk 0:04:57.1]}
4. Nxd4 {[%clk 0:04:54.5]} 4... Nf6 {[%clk 0:04:56]} 5. Nc3 {[%clk 0:04:53.3]}
5... a6 {[%clk 0:04:55.5]} 6. Bg5 {[%clk 0:04:50.5]} 6... e6 {[%clk 0:04:52.8]}
7. f4 {[%clk 0:04:49.5]} 7... Be7 {[%clk 0:04:50.7]} 8. Qf3 {[%clk 0:04:48.4]}
8... Qc7 {[%clk 0:04:45.7]} 9. O-O-O {[%clk 0:04:46.6]} 9... O-O {[%clk
0:04:43.6]} 10. g4 {[%clk 0:04:45.1]} 10... Nc6 {[%clk 0:04:42.1]} 11. Bxf6
{[%clk 0:04:42.8]} 11... Bxf6 {[%clk 0:04:38.6]} 12. Nxc6 {[%clk 0:04:34.7]}
12... Qxc6 {[%clk 0:04:37.6]} 13. Rd3 {[%clk 0:04:16.9]} 13... b5 {[%clk
0:04:26.4]} 14. g5 {[%clk 0:04:15.2]} 14... Bxc3 {[%clk 0:04:15.3]} 15. Rxc3
{[%clk 0:04:14]} 15... Qb6 {[%clk 0:04:14.5]} 16. h4 {[%clk 0:04:09.4]} 16...
Bb7 {[%clk 0:04:11.9]} 17. Bd3 {[%clk 0:04:04.8]} 17... Rac8 {[%clk 0:04:09]}
18. Rxc8 {[%clk 0:04:00.7]} 18... Rxc8 {[%clk 0:04:08.9]} 19. h5 {[%clk
0:03:58.9]} 19... d5 {[%clk 0:04:00.6]} 20. g6 {[%clk 0:03:55.3]} 20... fxg6
{[%clk 0:03:56.8]} 21. hxg6 {[%clk 0:03:53.6]} 21... hxg6 {[%clk 0:03:44.4]} 22.
Qh3 {[%clk 0:03:50.9]} 22... Kf7 {[%clk 0:03:40]} 23. exd5 {[%clk 0:03:45.8]}
23... Bxd5 {[%clk 0:03:38.5]} 24. Rg1 {[%clk 0:03:41.1]} 24... Qxg1+ {[%clk
0:03:34.7]} 25. Kd2 {[%clk 0:03:36]} 25... Bc4 {[%clk 0:03:25.5]} 26. Be4 {[%clk
0:03:27.9]} 26... Qf2+ {[%clk 0:03:21.3]} 27. Kc1 {[%clk 0:03:25.7]} 27... Qe1#
{[%clk 0:03:18.1]} 0-1

[Event "Live Chess"]
[Site "Chess.com"]
[Date "2023.05.20"]
[Round "-"]
[White "Wild_Tiger"]
[Black "LL220284LL"]
[Result "0-1"]
[WhiteElo "1070"]
[BlackElo "2397"]
[TimeControl "300"]
[EndTime "13:30:57 PDT"]
[Termination "LL220284LL won by checkmate"]

1. d4 {[%clk 0:04:56.8]} 1... g6 {[%clk 0:04:57.6]} 2. Nf3 {[%clk 0:04:54]} 2...
Bg7 {[%clk 0:04:57.2]} 3. e3 {[%clk 0:04:53.2]} 3... Nf6 {[%clk 0:04:56.7]} 4.
Bd3 {[%clk 0:04:51.2]} 4... d6 {[%clk 0:04:55.9]} 5. O-O {[%clk 0:04:49.2]} 5...
Nbd7 {[%clk 0:04:55.3]} 6. b3 {[%clk 0:04:46.1]} 6... e5 {[%clk 0:04:54.9]} 7.
dxe5 {[%clk 0:04:43.2]} 7... dxe5 {[%clk 0:04:54.8]} 8. Bb2 {[%clk 0:04:41.6]}
8... O-O {[%clk 0:04:52.4]} 9. Bc4 {[%clk 0:04:38]} 9... e4 {[%clk 0:04:47.7]}
10. Nd4 {[%clk 0:04:29.2]} 10... Ne5 {[%clk 0:04:45.4]} 11. Nd2 {[%clk
0:04:24.4]} 11... Bg4 {[%clk 0:04:43.3]} 12. N4f3 {[%clk 0:04:11.5]} 12... exf3
{[%clk 0:04:39.3]} 13. Nxf3 {[%clk 0:04:09.2]} 13... Nxf3+ {[%clk 0:04:37.7]}
14. gxf3 {[%clk 0:04:07.1]} 14... Bh3 {[%clk 0:04:37.3]} 15. Qxd8 {[%clk
0:03:59.2]} 15... Raxd8 {[%clk 0:04:35.3]} 16. Rfd1 {[%clk 0:03:57.2]} 16... Bc8
{[%clk 0:04:24.6]} 17. Bd4 {[%clk 0:03:43.6]} 17... b6 {[%clk 0:04:21.9]} 18.
Kg2 {[%clk 0:03:34.2]} 18... c5 {[%clk 0:04:19.7]} 19. Be5 {[%clk 0:03:17.5]}
19... Bb7 {[%clk 0:04:15.6]} 20. Bc7 {[%clk 0:03:11]} 20... Rc8 {[%clk
0:04:12.8]} 21. Bd6 {[%clk 0:03:01]} 21... Rfd8 {[%clk 0:04:10.5]} 22. Be7
{[%clk 0:02:55.4]} 22... Re8 {[%clk 0:04:06.8]} 23. Bd6 {[%clk 0:02:52.9]} 23...
Bf8 {[%clk 0:04:04.6]} 24. Bf4 {[%clk 0:02:42.5]} 24... Nh5 {[%clk 0:04:03.4]}
25. Bd6 {[%clk 0:02:28.1]} 25... Rcd8 {[%clk 0:04:02.3]} 26. Bc7 {[%clk
0:02:23.5]} 26... Rxd1 {[%clk 0:03:59]} 27. Rxd1 {[%clk 0:02:20.9]} 27... Bc6
{[%clk 0:03:58.4]} 28. Rd8 {[%clk 0:02:07.2]} 28... Rxd8 {[%clk 0:03:55.5]} 29.
Bxd8 {[%clk 0:02:07.1]} 29... Ng7 {[%clk 0:03:54.7]} 30. Bc7 {[%clk 0:02:06.9]}
30... Nf5 {[%clk 0:03:53.3]} 31. Bb8 {[%clk 0:02:06.2]} 31... Nh4+ {[%clk
0:03:49.4]} 32. Kg3 {[%clk 0:02:03.1]} 32... Nxf3 {[%clk 0:03:48.6]} 33. Bxa7
{[%clk 0:01:55]} 33... Bd6+ {[%clk 0:03:47]} 34. Kg2 {[%clk 0:01:45.4]} 34...
Nxh2+ {[%clk 0:03:43.2]} 35. Kg1 {[%clk 0:01:44.9]} 35... Nf3+ {[%clk
0:03:40.7]} 36. Kg2 {[%clk 0:01:37.3]} 36... b5 {[%clk 0:03:38.4]} 37. Be2
{[%clk 0:01:32]} 37... Nd4+ {[%clk 0:03:36.2]} 38. Bf3 {[%clk 0:01:29.2]} 38...
Nxf3 {[%clk 0:03:34.8]} 39. Kf1 {[%clk 0:01:20.4]} 39... h5 {[%clk 0:03:32.9]}
40. a3 {[%clk 0:01:09.6]} 40... h4 {[%clk 0:03:31.6]} 41. Kg2 {[%clk 0:01:05.7]}
41... Ng5+ {[%clk 0:03:28.9]} 42. Kg1 {[%clk 0:01:00.2]} 42... h3 {[%clk
0:03:28.8]} 43. Kf1 {[%clk 0:00:44.6]} 43... h2 {[%clk 0:03:27.4]} 44. Ke2
{[%clk 0:00:42.7]} 44... h1=Q {[%clk 0:03:27.3]} 45. c3 {[%clk 0:00:39.4]} 45...
Bf3+ {[%clk 0:03:26.7]} 46. Kd2 {[%clk 0:00:37.1]} 46... Qd1# {[%clk 0:03:26.6]}
0-1

[Event "Live Chess"]
[Site "Chess.com"]
[Date "2023.05.20"]
[Round "-"]
[White "KGreenGator"]
[Black "LozzaLoaf"]
[Result "1-0"]
[WhiteElo "1790"]
[BlackElo "248"]
[TimeControl "300"]
[EndTime "13:31:14 PDT"]
[Termination "KGreenGator won by checkmate"]

1. c4 {[%clk 0:04:58.6]} 1... Nc6 {[%clk 0:04:56.1]} 2. Nc3 {[%clk 0:04:57.3]}
2... Nb4 {[%clk 0:04:53.4]} 3. a3 {[%clk 0:04:55.8]} 3... Na6 {[%clk 0:04:47.9]}
4. d4 {[%clk 0:04:53.5]} 4... c6 {[%clk 0:04:46.5]} 5. e3 {[%clk 0:04:52.5]}
5... d5 {[%clk 0:04:45.7]} 6. c5 {[%clk 0:04:50.9]} 6... b6 {[%clk 0:04:43]} 7.
b4 {[%clk 0:04:47.6]} 7... bxc5 {[%clk 0:04:41.9]} 8. bxc5 {[%clk 0:04:46.7]}
8... f6 {[%clk 0:04:34.4]} 9. Qa4 {[%clk 0:04:44.6]} 9... e5 {[%clk 0:04:33.5]}
10. Qxc6+ {[%clk 0:04:41.6]} 10... Bd7 {[%clk 0:04:32.5]} 11. Qxd5 {[%clk
0:04:39.7]} 11... e4 {[%clk 0:04:27.8]} 12. Bc4 {[%clk 0:04:37.9]} 12... Nxc5
{[%clk 0:04:23.7]} 13. Qf7# {[%clk 0:04:36.8]} 1-0

[Event "Live Chess"]
[Site "Chess.com"]
[Date "2023.05.20"]
[Round "-"]
[White "EdvancedChess"]
[Black "Doge_Dandolo"]
[Result "1-0"]
[WhiteElo "1902"]
[BlackElo "2008"]
[TimeControl "300"]
[EndTime "13:31:17 PDT"]
[Termination "EdvancedChess won by resignation"]

1. e4 {[%clk 0:04:59.6]} 1... c6 {[%clk 0:04:58.6]} 2. Nf3 {[%clk 0:04:59.2]}
2... d5 {[%clk 0:04:57.6]} 3. exd5 {[%clk 0:04:59.1]} 3... cxd5 {[%clk
0:04:56.5]} 4. d4 {[%clk 0:04:59]} 4... Nc6 {[%clk 0:04:53.6]} 5. Bd3 {[%clk
0:04:58.5]} 5... Bg4 {[%clk 0:04:50.4]} 6. c3 {[%clk 0:04:57.9]} 6... Qc7 {[%clk
0:04:46.2]} 7. O-O {[%clk 0:04:57.1]} 7... e6 {[%clk 0:04:45.5]} 8. Bg5 {[%clk
0:04:54.7]} 8... Bd6 {[%clk 0:04:42.8]} 9. h3 {[%clk 0:04:53.7]} 9... Bxf3
{[%clk 0:04:40]} 10. Qxf3 {[%clk 0:04:52.6]} 10... h6 {[%clk 0:04:38.7]} 11. Be3
{[%clk 0:04:46.8]} 11... Nf6 {[%clk 0:04:37]} 12. Nd2 {[%clk 0:04:43.7]} 12...
O-O {[%clk 0:04:35.2]} 13. Bxh6 {[%clk 0:04:40.1]} 13... Ne7 {[%clk 0:04:23.4]}
14. Rae1 {[%clk 0:04:27.8]} 14... Rab8 {[%clk 0:04:17.6]} 15. Bg5 {[%clk
0:04:17.4]} 15... b5 {[%clk 0:04:11.6]} 16. Bxf6 {[%clk 0:04:15.9]} 16... gxf6
{[%clk 0:04:10.3]} 17. Qxf6 {[%clk 0:04:14.7]} 17... Ng6 {[%clk 0:04:06.4]} 18.
Bxg6 {[%clk 0:04:12.2]} 18... fxg6 {[%clk 0:04:05.4]} 19. Qxg6+ {[%clk
0:04:11.2]} 19... Qg7 {[%clk 0:04:04.6]} 20. Qxe6+ {[%clk 0:04:10.3]} 1-0

[Event "Live Chess"]
[Site "Chess.com"]
[Date "2023.05.20"]
[Round "-"]
[White "yarek"]
[Black "OceanFloater"]
[Result "1/2-1/2"]
[WhiteElo "1896"]
[BlackElo "1005"]
[TimeControl "300"]
[EndTime "13:31:29 PDT"]
[Termination "Game drawn by repetition"]

1. e4 {[%clk 0:04:57.9]} 1... c5 {[%clk 0:04:57.6]} 2. d4 {[%clk 0:04:55.3]}
2... e6 {[%clk 0:04:54.6]} 3. c3 {[%clk 0:04:49.5]} 3... Nc6 {[%clk 0:04:52.3]}
4. Nf3 {[%clk 0:04:47.1]} 4... d5 {[%clk 0:04:49.9]} 5. e5 {[%clk 0:04:39.9]}
5... cxd4 {[%clk 0:04:48.5]} 6. cxd4 {[%clk 0:04:38.4]} 6... Qa5+ {[%clk
0:04:45.9]} 7. Bd2 {[%clk 0:04:31.4]} 7... Qb6 {[%clk 0:04:44.7]} 8. Bc3 {[%clk
0:04:27.1]} 8... Bb4 {[%clk 0:04:40.4]} 9. a3 {[%clk 0:04:12]} 9... Bxc3+ {[%clk
0:04:35.7]} 10. bxc3 {[%clk 0:04:10.4]} 10... Nge7 {[%clk 0:04:33.3]} 11. Bd3
{[%clk 0:04:04.4]} 11... Ng6 {[%clk 0:04:28.4]} 12. O-O {[%clk 0:03:57.6]} 12...
Nf4 {[%clk 0:04:26.8]} 13. Bc2 {[%clk 0:03:53.8]} 13... O-O {[%clk 0:04:19.3]}
14. Qd2 {[%clk 0:03:29]} 14... Ng6 {[%clk 0:04:13.3]} 15. Qd3 {[%clk 0:03:11.8]}
15... Nce7 {[%clk 0:04:09.5]} 16. h4 {[%clk 0:03:07.8]} 16... Bd7 {[%clk
0:04:02.5]} 17. h5 {[%clk 0:03:05.6]} 17... Bb5 {[%clk 0:04:01.1]} 18. Qe3
{[%clk 0:02:40.9]} 18... Bxf1 {[%clk 0:03:56.5]} 19. hxg6 {[%clk 0:02:38.5]}
19... fxg6 {[%clk 0:03:51.8]} 20. Kxf1 {[%clk 0:02:34.2]} 20... Qb5+ {[%clk
0:03:49.1]} 21. Bd3 {[%clk 0:02:31.1]} 21... Qb2 {[%clk 0:03:46.7]} 22. Ng5
{[%clk 0:02:11]} 22... Qxa1 {[%clk 0:03:38.1]} 23. Qh3 {[%clk 0:01:59.9]} 23...
h6 {[%clk 0:03:33.4]} 24. Qxe6+ {[%clk 0:01:52.6]} 24... Kh8 {[%clk 0:03:27.7]}
25. Nf7+ {[%clk 0:01:39.7]} 25... Kh7 {[%clk 0:03:24.9]} 26. Qxe7 {[%clk
0:01:34.5]} 26... Qb2 {[%clk 0:03:10.3]} 27. Qe6 {[%clk 0:00:58.5]} 27... Qc1+
{[%clk 0:03:01.9]} 28. Ke2 {[%clk 0:00:57.2]} 28... Qb2+ {[%clk 0:02:47.4]} 29.
Nd2 {[%clk 0:00:55.2]} 29... Qxc3 {[%clk 0:02:37.5]} 30. Bxg6+ {[%clk
0:00:50.5]} 30... Kg8 {[%clk 0:02:32.3]} 31. Nxh6+ {[%clk 0:00:42.5]} 31... Kh8
{[%clk 0:02:28.7]} 32. Nf7+ {[%clk 0:00:37.3]} 32... Kg8 {[%clk 0:02:26.8]} 33.
Nh6+ {[%clk 0:00:24.2]} 33... Kh8 {[%clk 0:02:24]} 34. Nf7+ {[%clk 0:00:23]}
34... Kg8 {[%clk 0:02:22.8]} 35. Nh6+ {[%clk 0:00:21.8]} 1/2-1/2

[Event "Live Chess"]
[Site "Chess.com"]
[Date "2023.05.20"]
[Round "-"]
[White "tehanu"]
[Black "Pandreq"]
[Result "0-1"]
[WhiteElo "1124"]
[BlackElo "1276"]
[TimeControl "300"]
[EndTime "13:31:34 PDT"]
[Termination "Pandreq won by checkmate"]

1. f4 {[%clk 0:04:55.6]} 1... e6 {[%clk 0:04:53.9]} 2. Nf3 {[%clk 0:04:55.5]}
2... d5 {[%clk 0:04:52.5]} 3. g3 {[%clk 0:04:49.4]} 3... b6 {[%clk 0:04:50.1]}
4. Bg2 {[%clk 0:04:49.3]} 4... Bb7 {[%clk 0:04:48.5]} 5. e3 {[%clk 0:04:47.8]}
5... Nc6 {[%clk 0:04:47.5]} 6. O-O {[%clk 0:04:45.6]} 6... Bc5 {[%clk
0:04:46.3]} 7. d4 {[%clk 0:04:44.5]} 7... Bd6 {[%clk 0:04:42.5]} 8. Ne5 {[%clk
0:04:43.2]} 8... Nxe5 {[%clk 0:04:40.9]} 9. dxe5 {[%clk 0:04:43.1]} 9... Bc5
{[%clk 0:04:39.6]} 10. Qg4 {[%clk 0:04:41.5]} 10... g6 {[%clk 0:04:33]} 11. c4
{[%clk 0:04:39.6]} 11... Ne7 {[%clk 0:04:25]} 12. Rd1 {[%clk 0:04:14.7]} 12...
c6 {[%clk 0:04:14.5]} 13. Nc3 {[%clk 0:04:12.4]} 13... d4 {[%clk 0:04:08.1]} 14.
exd4 {[%clk 0:04:01]} 14... Bxd4+ {[%clk 0:04:06.4]} 15. Kh1 {[%clk 0:03:59.5]}
15... Nf5 {[%clk 0:03:51.8]} 16. Ne4 {[%clk 0:03:54]} 16... c5 {[%clk 0:03:47]}
17. Nf6+ {[%clk 0:03:51.8]} 17... Kf8 {[%clk 0:03:39.5]} 18. Bxb7 {[%clk
0:03:50.4]} 18... Rb8 {[%clk 0:03:31.8]} 19. Be4 {[%clk 0:03:47.7]} 19... b5
{[%clk 0:03:23.2]} 20. Bxf5 {[%clk 0:03:44.2]} 20... exf5 {[%clk 0:03:22.2]} 21.
Qh4 {[%clk 0:03:42.5]} 21... Qc8 {[%clk 0:03:02.6]} 22. cxb5 {[%clk 0:03:39.1]}
22... Rxb5 {[%clk 0:03:01]} 23. a4 {[%clk 0:03:36.7]} 23... Qc6+ {[%clk
0:02:59.9]} 24. Nd5 {[%clk 0:03:27.6]} 24... Qxd5# {[%clk 0:02:58.6]} 0-1

[Event "Live Chess"]
[Site "Chess.com"]
[Date "2023.05.20"]
[Round "-"]
[White "Lewstar1"]
[Black "Jeffaroow"]
[Result "0-1"]
[WhiteElo "443"]
[BlackElo "468"]
[TimeControl "300"]
[EndTime "13:31:36 PDT"]
[Termination "Jeffaroow won on time"]

1. e4 {[%clk 0:04:55.1]} 1... e5 {[%clk 0:04:54.6]} 2. Nc3 {[%clk 0:04:39.8]}
2... Nf6 {[%clk 0:04:50.4]} 3. f4 {[%clk 0:04:31.7]} 3... exf4 {[%clk
0:04:42.9]} 4. e5 {[%clk 0:04:31.6]} 4... Qe7 {[%clk 0:04:39]} 5. Qe2 {[%clk
0:04:27.7]} 5... Nh5 {[%clk 0:04:21.8]} 6. Qxh5 {[%clk 0:04:24.5]} 6... g6
{[%clk 0:04:18.4]} 7. Qe2 {[%clk 0:04:21.7]} 7... b5 {[%clk 0:04:11.6]} 8. a3
{[%clk 0:04:08.3]} 8... f6 {[%clk 0:04:11.4]} 9. d4 {[%clk 0:04:06.6]} 9... fxe5
{[%clk 0:04:10]} 10. dxe5 {[%clk 0:04:06.5]} 10... Nc6 {[%clk 0:04:04.2]} 11.
Nf3 {[%clk 0:04:02.8]} 11... d6 {[%clk 0:03:52.2]} 12. exd6 {[%clk 0:03:57.5]}
12... cxd6 {[%clk 0:03:51.1]} 13. Bxf4 {[%clk 0:03:53.8]} 13... Qxe2+ {[%clk
0:03:35.6]} 14. Bxe2 {[%clk 0:03:53.7]} 14... Bf5 {[%clk 0:03:31.8]} 15. Nd5
{[%clk 0:03:34.5]} 15... O-O-O {[%clk 0:03:27.7]} 16. c3 {[%clk 0:03:09]} 16...
Be4 {[%clk 0:03:10.2]} 17. Bxb5 {[%clk 0:03:05.5]} 17... Bxd5 {[%clk 0:03:04.5]}
18. O-O {[%clk 0:02:55.7]} 18... Bxf3 {[%clk 0:02:57.2]} 19. Rxf3 {[%clk
0:02:46.1]} 19... Ne5 {[%clk 0:02:49.6]} 20. Bxe5 {[%clk 0:02:23]} 20... dxe5
{[%clk 0:02:48.2]} 21. Ba6+ {[%clk 0:02:22]} 21... Kb8 {[%clk 0:02:46.5]} 22.
Rf7 {[%clk 0:02:17.1]} 22... Re8 {[%clk 0:02:19.7]} 23. Rb7+ {[%clk 0:02:12.8]}
23... Kc8 {[%clk 0:02:15.9]} 24. Rxh7+ {[%clk 0:02:04.3]} 24... Kd8 {[%clk
0:02:11.9]} 25. Rxh8 {[%clk 0:02:03]} 25... Bc5+ {[%clk 0:02:09.8]} 26. Kf1
{[%clk 0:01:46.9]} 26... Rxh8 {[%clk 0:02:08]} 27. h3 {[%clk 0:01:46.1]} 27...
Rf8+ {[%clk 0:02:04.6]} 28. Ke2 {[%clk 0:01:42.1]} 28... Rf2+ {[%clk 0:02:01.5]}
29. Kd3 {[%clk 0:01:37.5]} 29... Rxb2 {[%clk 0:01:59.7]} 30. Rd1 {[%clk
0:01:27.8]} 30... Bxa3 {[%clk 0:01:41.9]} 31. c4 {[%clk 0:01:21.3]} 31... Ke7
{[%clk 0:01:29]} 32. Ke4 {[%clk 0:01:13.8]} 32... Kf6 {[%clk 0:01:21.5]} 33.
Rf1+ {[%clk 0:01:02.1]} 33... Ke6 {[%clk 0:01:12.8]} 34. Bc8+ {[%clk 0:01:00.8]}
34... Kd6 {[%clk 0:01:11]} 35. Rf6+ {[%clk 0:00:56.4]} 35... Ke7 {[%clk
0:01:07.4]} 36. Kxe5 {[%clk 0:00:53]} 36... Re2+ {[%clk 0:01:04.9]} 37. Kd5
{[%clk 0:00:34]} 37... Kxf6 {[%clk 0:01:01.3]} 38. g4 {[%clk 0:00:33.9]} 38...
Re5+ {[%clk 0:00:49.7]} 39. Kd4 {[%clk 0:00:27.5]} 39... g5 {[%clk 0:00:42.6]}
40. Ba6 {[%clk 0:00:13.6]} 40... Bb2+ {[%clk 0:00:32.7]} 41. Kd3 {[%clk
0:00:11.2]} 41... Re1 {[%clk 0:00:23]} 42. Kd2 {[%clk 0:00:07.6]} 42... Rh1
{[%clk 0:00:21.5]} 43. Bc8 {[%clk 0:00:03.6]} 43... Rxh3 {[%clk 0:00:19.3]} 44.
Kc2 {[%clk 0:00:03.5]} 44... Rh2+ {[%clk 0:00:17.8]} 45. Kb3 {[%clk 0:00:01.4]}
45... Rh3+ {[%clk 0:00:13.2]} 0-1